[Event "MČR 2022 blesk"]
[Site "Turnov, Czech Republic"]
[Date "2022.09.10"]
[Round "7.8"]
[White "Pisk, Petr"]
[Black "Richtrova, Eliska"]
[Result "1-0"]
[TimeControl "2x 3 min + 2s/move"]
[WhiteElo "2312"]
[BlackElo "2129"]

1. d4 {[%clk 00:03:02]} Nf6 {[%clk 00:03:00]} {[%emt 00:00:09]} 2. Bg5 {[%clk
00:03:00]} e6 {[%clk 00:02:59]} 3. e4 {[%clk 00:03:01]} h6 {[%clk 00:03:00]}
{[%emt 00:00:05]} 4. Bxf6 {[%clk 00:03:00]} {[%emt 00:00:05]} Qxf6 {[%clk
00:03:01]} 5. c3 {[%clk 00:03:01]} Qg6 {[%clk 00:02:59]} 6. Nd2 {[%clk
00:03:00]} {[%emt 00:00:05]} d6 {[%clk 00:02:45]} {[%emt 00:00:13]} 7. Ngf3
{[%clk 00:02:33]} {[%emt 00:00:29]} Be7 {[%clk 00:02:45]} 8. Bd3 {[%clk
00:02:32]} {[%emt 00:00:08]} Nd7 {[%clk 00:02:36]} {[%emt 00:00:16]} 9. O-O
{[%clk 00:02:30]} O-O {[%clk 00:02:24]} {[%emt 00:00:09]} 10. Re1 {[%clk
00:02:30]} e5 {[%clk 00:02:25]} 11. a4 {[%clk 00:02:28]} {[%emt 00:00:11]} c6
{[%clk 00:02:15]} {[%emt 00:00:08]} 12. Nc4 {[%clk 00:02:25]} {[%emt 00:00:11]}
Re8 {[%clk 00:02:07]} {[%emt 00:00:07]} 13. dxe5 {[%clk 00:02:24]} {[%emt
00:00:05]} dxe5 {[%clk 00:02:08]} 14. Ncxe5 {[%clk 00:02:23]} Nxe5 {[%clk
00:02:06]} {[%emt 00:00:09]} 15. Nxe5 {[%clk 00:02:24]} Qf6 {[%clk 00:01:57]}
{[%emt 00:00:07]} 16. Nf3 {[%clk 00:02:13]} {[%emt 00:00:13]} Bg4 {[%clk
00:01:49]} {[%emt 00:00:14]} 17. Be2 {[%clk 00:02:14]} Bc5 {[%clk 00:01:45]}
{[%emt 00:00:11]} 18. h3 {[%clk 00:02:09]} Bxf3 {[%clk 00:01:37]} {[%emt
00:00:08]} 19. Bxf3 {[%clk 00:02:09]} {[%emt 00:00:07]} a5 {[%clk 00:01:25]}
{[%emt 00:00:10]} 20. Qc2 {[%clk 00:01:56]} {[%emt 00:00:15]} Re7 {[%clk
00:01:22]} {[%emt 00:00:08]} 21. Rad1 {[%clk 00:01:53]} {[%emt 00:00:05]} Rae8
{[%clk 00:01:23]} 22. Rd3 {[%clk 00:01:51]} {[%emt 00:00:04]} Qf4 {[%clk
00:01:07]} {[%emt 00:00:17]} 23. Red1 {[%clk 00:01:49]} {[%emt 00:00:06]} g6
{[%clk 00:01:06]} {[%emt 00:00:05]} 24. Rd7 {[%clk 00:01:45]} {[%emt 00:00:05]}
Kg7 {[%clk 00:01:03]} {[%emt 00:00:05]} 25. Rxe7 {[%clk 00:01:41]} {[%emt
00:00:04]} Rxe7 {[%clk 00:01:04]} {[%emt 00:00:04]} 26. Qd2 {[%clk 00:01:14]}
{[%emt 00:00:24]} Qh4 {[%clk 00:01:00]} {[%emt 00:00:07]} 27. Qc2 {[%clk
00:00:53]} {[%emt 00:00:26]} h5 {[%clk 00:01:00]} 28. b4 {[%clk 00:00:45]}
{[%emt 00:00:07]} axb4 {[%clk 00:00:56]} {[%emt 00:00:12]} 29. cxb4 {[%clk
00:00:46]} Bxb4 {[%clk 00:00:57]} 30. Qb2+ {[%clk 00:00:47]} Qf6 {[%clk
00:00:38]} {[%emt 00:00:18]} 31. Qxb4 {[%clk 00:00:48]} {[%emt 00:00:06]} Kh7
{[%clk 00:00:27]} {[%emt 00:00:13]} 32. Qd4 {[%clk 00:00:48]} Qg5 {[%clk
00:00:26]} {[%emt 00:00:12]} 33. Qd8 {[%clk 00:00:45]} Qe5 {[%clk 00:00:25]}
{[%emt 00:00:12]} 34. h4 {[%clk 00:00:39]} c5 {[%clk 00:00:18]} {[%emt
00:00:05]} 35. Rd7 {[%clk 00:00:31]} {[%emt 00:00:06]} Rxd7 {[%clk 00:00:17]}
{[%emt 00:00:09]} 36. Qxd7 Kg7 {[%clk 00:00:19]} 37. Qxb7 {[%clk 00:00:29]}
{[%emt 00:00:05]} c4 {[%clk 00:00:19]} 38. g3 {[%clk 00:00:24]} {[%emt
00:00:43]} Qa1+ {[%clk 00:00:20]} 39. Kg2 {[%clk 00:00:25]} Qxa4 {[%clk
00:00:21]} 40. e5 {[%clk 00:00:24]} Qb3 {[%clk 00:00:21]} 41. Qxb3 {[%clk
00:00:22]} cxb3 {[%clk 00:00:22]} 42. Bd5 {[%clk 00:00:23]} b2 {[%clk
00:00:22]} {[%emt 00:00:04]} 43. Ba2 {[%clk 00:00:24]} Kf8 {[%clk 00:00:20]} 44.
Kf3 {[%clk 00:00:25]} Ke7 {[%clk 00:00:21]} 45. Ke4 {[%clk 00:00:26]} 1-0

[Event "MČR 2022 blesk"]
[Site "Turnov, Czech Republic"]
[Date "2022.09.10"]
[Round "8.2"]
[White "Roubalik, Jakub"]
[Black "Cerveny, Martin"]
[Result "1/2-1/2"]
[TimeControl "2x 3 min + 2s/move"]
[WhiteElo "2276"]
[BlackElo "2288"]

1. d4 {[%clk 00:03:03]} d5 {[%clk 00:03:03]} {[%emt 00:00:05]} 2. c4 {[%clk
00:03:03]} c6 {[%clk 00:03:05]} 3. Nc3 {[%clk 00:02:58]} {[%emt 00:00:06]} Nf6
{[%clk 00:03:06]} 4. cxd5 {[%clk 00:02:58]} {[%emt 00:00:13]} cxd5 {[%clk
00:03:07]} 5. Bf4 {[%clk 00:02:59]} Nc6 {[%clk 00:03:08]} 6. e3 {[%clk
00:02:59]} a6 {[%clk 00:03:09]} {[%emt 00:00:04]} 7. Rc1 {[%clk 00:02:57]} e6
{[%clk 00:02:59]} {[%emt 00:00:06]} 8. Nf3 {[%clk 00:02:56]} {[%emt 00:00:05]}
Be7 {[%clk 00:02:59]} 9. Ne5 {[%clk 00:02:50]} {[%emt 00:00:19]} Bd7 {[%clk
00:02:41]} {[%emt 00:00:13]} 10. Bd3 {[%clk 00:02:42]} {[%emt 00:00:06]} Rc8
{[%clk 00:02:35]} {[%emt 00:00:11]} 11. O-O {[%clk 00:02:40]} O-O {[%clk
00:02:32]} {[%emt 00:00:05]} 12. Qf3 {[%clk 00:02:29]} {[%emt 00:00:14]} Nxe5
{[%clk 00:01:53]} {[%emt 00:00:40]} 13. Bxe5 {[%clk 00:02:25]} {[%emt
00:00:09]} g6 {[%clk 00:01:48]} {[%emt 00:00:07]} 14. h3 {[%clk 00:02:21]}
{[%emt 00:00:06]} b5 {[%clk 00:01:45]} {[%emt 00:00:11]} 15. Ne2 {[%clk
00:02:11]} {[%emt 00:00:05]} Ne8 {[%clk 00:01:43]} {[%emt 00:00:21]} 16. Rxc8
{[%clk 00:02:06]} Qxc8 {[%clk 00:01:43]} 17. Rc1 {[%clk 00:02:06]} Qb7 {[%clk
00:01:34]} {[%emt 00:00:05]} 18. Qg3 {[%clk 00:01:30]} {[%emt 00:00:38]} Qb6
{[%clk 00:01:19]} {[%emt 00:00:16]} 19. h4 {[%clk 00:00:44]} {[%emt 00:00:47]}
Bd6 {[%clk 00:01:06]} {[%emt 00:00:15]} 20. a3 {[%clk 00:00:34]} {[%emt
00:00:12]} Bxe5 {[%clk 00:00:59]} {[%emt 00:00:10]} 21. Qxe5 {[%clk 00:00:35]}
Nd6 {[%clk 00:00:50]} {[%emt 00:00:15]} 22. b3 {[%clk 00:00:34]} {[%emt
00:00:07]} Rc8 {[%clk 00:00:49]} 23. Rxc8+ Nxc8 {[%clk 00:00:50]} 24. h5 {[%clk
00:00:30]} {[%emt 00:00:06]} Qd6 {[%clk 00:00:48]} {[%emt 00:00:05]} 25. Qxd6
{[%clk 00:00:24]} {[%emt 00:00:10]} Nxd6 {[%clk 00:00:48]} 26. hxg6 {[%clk
00:00:25]} hxg6 {[%clk 00:00:50]} 27. Kf1 {[%clk 00:00:25]} Kf8 {[%clk
00:00:45]} {[%emt 00:00:09]} 28. Ke1 {[%clk 00:00:26]} Ke7 {[%clk 00:00:46]} 29.
Kd2 {[%clk 00:00:27]} {[%emt 00:00:04]} Nc8 {[%clk 00:00:44]} {[%emt 00:00:04]}
30. Kc3 {[%clk 00:00:26]} {[%emt 00:00:04]} Kd6 {[%clk 00:00:45]} 31. Nc1
{[%clk 00:00:23]} {[%emt 00:00:10]} a5 {[%clk 00:00:41]} 32. Be2 {[%clk
00:00:23]} {[%emt 00:00:05]} f6 {[%clk 00:00:41]} 33. Nd3 {[%clk 00:00:23]} e5
{[%clk 00:00:41]} 34. Nc5 {[%clk 00:00:21]} {[%emt 00:00:12]} Bc6 {[%clk
00:00:40]} 1/2-1/2

[Event "MČR 2022 blesk"]
[Site "Turnov, Czech Republic"]
[Date "2022.09.10"]
[Round "8.3"]
[White "Balacek, Tadeas"]
[Black "Nemec, Jachym"]
[Result "1/2-1/2"]
[TimeControl "2x 3 min + 2s/move"]
[WhiteElo "2257"]
[BlackElo "2130"]

1. d4 {[%clk 00:03:02]} d5 {[%clk 00:03:02]} 2. c4 {[%clk 00:03:01]} c6 {[%clk
00:03:03]} 3. cxd5 {[%clk 00:02:55]} cxd5 {[%clk 00:03:04]} 4. Bf4 {[%clk
00:02:56]} Nc6 {[%clk 00:03:04]} 5. e3 {[%clk 00:02:57]} Nf6 {[%clk 00:03:05]}
6. Nc3 {[%clk 00:02:57]} Bg4 {[%clk 00:03:05]} 7. Be2 {[%clk 00:02:51]} {[%emt
00:00:28]} Bxe2 {[%clk 00:02:59]} 8. Qxe2 {[%clk 00:02:51]} e6 {[%clk
00:02:48]} 9. Nf3 {[%clk 00:02:47]} a6 {[%clk 00:02:41]} {[%emt 00:00:05]} 10.
O-O {[%clk 00:02:43]} {[%emt 00:00:06]} Be7 {[%clk 00:02:41]} {[%emt 00:00:05]}
11. h3 {[%clk 00:02:40]} {[%emt 00:00:04]} O-O 12. Rfc1 {[%emt 00:00:04]} Qa5
{[%clk 00:02:23]} {[%emt 00:00:17]} 13. a3 {[%clk 00:02:35]} {[%emt 00:00:07]}
Rfc8 {[%clk 00:02:24]} 14. b4 {[%clk 00:02:18]} {[%emt 00:00:25]} Qd8 {[%clk
00:02:25]} 15. Na4 {[%clk 00:02:19]} Ne4 {[%clk 00:02:21]} {[%emt 00:00:07]} 16.
Nc5 {[%clk 00:02:18]} {[%emt 00:00:05]} Bxc5 {[%clk 00:02:11]} {[%emt
00:00:06]} 17. dxc5 {[%clk 00:01:55]} {[%emt 00:00:31]} Qe7 {[%clk 00:02:06]}
{[%emt 00:00:05]} 18. Qb2 {[%clk 00:01:53]} {[%emt 00:00:05]} Re8 {[%clk
00:01:57]} {[%emt 00:00:06]} 19. Rd1 {[%clk 00:01:52]} {[%emt 00:00:05]} Rad8
{[%clk 00:01:54]} {[%emt 00:00:07]} 20. Qb3 {[%clk 00:01:26]} {[%emt 00:00:28]}
e5 {[%clk 00:01:39]} {[%emt 00:00:14]} 21. Bh2 {[%clk 00:01:24]} {[%emt
00:00:05]} Qe6 {[%clk 00:01:40]} 22. a4 {[%clk 00:01:00]} {[%emt 00:00:28]} f6
{[%clk 00:01:34]} {[%emt 00:00:11]} 23. Nd2 {[%clk 00:00:47]} {[%emt 00:00:09]}
Nxd2 {[%clk 00:01:20]} {[%emt 00:00:17]} 24. Rxd2 {[%clk 00:00:48]} a5 {[%clk
00:01:21]} 25. b5 {[%clk 00:00:46]} {[%emt 00:00:10]} Nb4 {[%clk 00:01:22]} 26.
Rc1 {[%clk 00:00:24]} {[%emt 00:00:19]} Qf7 {[%clk 00:01:18]} {[%emt 00:00:06]}
27. f3 {[%clk 00:00:24]} {[%emt 00:00:05]} Rc8 {[%clk 00:01:13]} {[%emt
00:00:07]} 28. Bg3 {[%clk 00:00:24]} {[%emt 00:00:04]} Qe7 {[%clk 00:01:06]}
{[%emt 00:00:06]} 29. Rxd5 {[%clk 00:00:19]} {[%emt 00:00:09]} Nxd5 {[%clk
00:01:05]} 30. Qxd5+ {[%clk 00:00:20]} Kh8 {[%clk 00:01:06]} 31. e4 {[%clk
00:00:17]} {[%emt 00:00:10]} Red8 {[%clk 00:01:07]} 32. Qc4 {[%clk 00:00:12]}
{[%emt 00:00:05]} Rd4 {[%clk 00:01:09]} 33. Qc2 {[%clk 00:00:14]} Rcd8 {[%clk
00:00:43]} {[%emt 00:00:26]} 34. Be1 {[%clk 00:00:15]} Qc7 {[%clk 00:00:41]}
{[%emt 00:00:10]} 35. h4 {[%clk 00:00:05]} {[%emt 00:00:07]} Rd3 {[%clk
00:00:39]} {[%emt 00:00:11]} 36. b6 {[%clk 00:00:03]} Qc6 {[%clk 00:00:39]} 37.
Bxa5 {[%clk 00:00:04]} {[%emt 00:00:05]} R3d4 {[%clk 00:00:38]} 38. Be1 {[%clk
00:00:04]} {[%emt 00:00:26]} Rxa4 {[%clk 00:00:38]} 39. Bf2 {[%clk 00:00:04]}
Raa8 {[%clk 00:00:38]} 40. Qc4 {[%clk 00:00:04]} Rd7 {[%clk 00:00:33]} 41. Kh2
{[%clk 00:00:05]} Rad8 {[%clk 00:00:34]} {[%emt 00:00:09]} 42. Kg3 {[%clk
00:00:05]} h5 {[%clk 00:00:33]} 43. Rc2 {[%clk 00:00:06]} Kh7 {[%clk 00:00:35]}
44. Qe2 {[%clk 00:00:06]} {[%emt 00:00:05]} Rd1 {[%clk 00:00:34]} {[%emt
00:00:10]} 45. Be3 {[%clk 00:00:07]} R1d3 {[%clk 00:00:29]} 46. Kh2 {[%clk
00:00:05]} {[%emt 00:00:38]} R3d7 {[%clk 00:00:29]} 1/2-1/2

[Event "MČR 2022 blesk"]
[Site "Turnov, Czech Republic"]
[Date "2022.09.10"]
[Round "8.5"]
[White "Novotny, Michal"]
[Black "Vykouk, Jan"]
[Result "1/2-1/2"]
[TimeControl "2x 3 min + 2s/move"]
[WhiteElo "2294"]
[BlackElo "2352"]

1. e4 {[%clk 00:03:03]} {[%emt 00:00:10]} c5 {[%clk 00:03:03]} 2. Nf3 {[%clk
00:03:04]} Nc6 {[%clk 00:03:02]} 3. Bb5 {[%clk 00:03:04]} g6 {[%clk 00:03:03]}
{[%emt 00:00:04]} 4. O-O {[%clk 00:03:02]} {[%emt 00:00:04]} Bg7 {[%clk
00:03:04]} 5. Re1 {[%clk 00:03:03]} e5 {[%clk 00:03:02]} {[%emt 00:00:10]} 6.
Bxc6 {[%clk 00:03:04]} bxc6 {[%clk 00:03:02]} 7. c3 {[%clk 00:03:01]} {[%emt
00:00:04]} Ne7 {[%clk 00:03:01]} 8. d4 {[%clk 00:02:57]} {[%emt 00:00:21]} cxd4
{[%clk 00:03:00]} 9. cxd4 {[%clk 00:02:59]} exd4 {[%clk 00:02:57]} 10. Nxd4
{[%clk 00:03:00]} O-O {[%clk 00:02:54]} {[%emt 00:00:10]} 11. Nc3 {[%clk
00:02:59]} d6 {[%clk 00:02:25]} {[%emt 00:00:22]} 12. Bf4 {[%clk 00:02:50]}
{[%emt 00:00:12]} Bb7 {[%clk 00:02:05]} {[%emt 00:00:25]} 13. Nb3 {[%clk
00:02:43]} {[%emt 00:00:13]} Nc8 {[%clk 00:01:49]} {[%emt 00:00:10]} 14. Qd2
{[%clk 00:02:39]} {[%emt 00:00:06]} a5 {[%clk 00:01:42]} {[%emt 00:00:13]} 15.
Rad1 {[%clk 00:02:36]} {[%emt 00:00:09]} Qb6 {[%clk 00:01:04]} {[%emt
00:00:35]} 16. Be3 {[%clk 00:01:46]} {[%emt 00:00:53]} c5 {[%clk 00:01:01]}
{[%emt 00:00:04]} 17. Nd5 {[%clk 00:01:27]} {[%emt 00:00:17]} Bxd5 {[%clk
00:00:58]} {[%emt 00:00:16]} 18. Qxd5 {[%clk 00:01:27]} Rb8 {[%clk 00:00:59]}
19. Re2 {[%clk 00:01:13]} {[%emt 00:00:13]} a4 {[%clk 00:00:58]} {[%emt
00:00:05]} 20. Nc1 {[%clk 00:01:14]} Ne7 {[%clk 00:00:50]} {[%emt 00:00:06]} 21.
Qc4 {[%clk 00:01:02]} {[%emt 00:00:13]} Bxb2 {[%clk 00:00:40]} {[%emt
00:00:16]} 22. Qxa4 {[%clk 00:00:51]} {[%emt 00:00:08]} Be5 {[%clk 00:00:32]}
{[%emt 00:00:11]} 23. f4 {[%clk 00:00:44]} {[%emt 00:00:08]} Bg7 {[%clk
00:00:25]} {[%emt 00:00:09]} 24. Qd7 {[%clk 00:00:35]} {[%emt 00:00:12]} Nc6
{[%clk 00:00:05]} {[%emt 00:00:23]} 25. Red2 {[%clk 00:00:18]} {[%emt
00:00:18]} Nd4 {[%clk 00:00:05]} {[%emt 00:00:05]} 26. Ne2 {[%clk 00:00:11]}
{[%emt 00:00:06]} Rfd8 {[%clk 00:00:05]} 27. Qa4 {[%clk 00:00:09]} {[%emt
00:00:12]} Ra8 {[%clk 00:00:06]} 28. Qc4 {[%clk 00:00:10]} Re8 {[%clk
00:00:03]} {[%emt 00:00:05]} 29. Nxd4 {[%clk 00:00:09]} {[%emt 00:00:04]} Rxe4
{[%clk 00:00:03]} 30. Qd5 {[%clk 00:00:11]} Rae8 {[%clk 00:00:04]} 31. Nc2
{[%clk 00:00:12]} Rxe3 32. Nxe3 {[%clk 00:00:13]} Rxe3 {[%clk 00:00:05]} 33.
Qxd6 {[%emt 00:00:05]} Qxd6 {[%clk 00:00:05]} 34. Rxd6 {[%clk 00:00:14]} Bd4
{[%clk 00:00:07]} 35. R6xd4 {[%emt 00:00:09]} cxd4 {[%clk 00:00:07]} 36. Rxd4
{[%clk 00:00:16]} Ra3 {[%clk 00:00:07]} 37. Rd2 {[%clk 00:00:17]} Kg7 {[%clk
00:00:08]} 38. Kf2 {[%clk 00:00:18]} h5 {[%clk 00:00:09]} {[%emt 00:00:04]} 39.
g3 {[%clk 00:00:18]} Kf6 {[%clk 00:00:10]} {[%emt 00:00:04]} 40. Rb2 {[%clk
00:00:19]} Kf5 {[%clk 00:00:11]} 41. Kg2 {[%clk 00:00:14]} {[%emt 00:00:05]}
Ke5 {[%emt 00:00:14]} 1/2-1/2

[Event "MČR 2022 blesk"]
[Site "Turnov, Czech Republic"]
[Date "2022.09.10"]
[Round "8.6"]
[White "Kraus, Tomas"]
[Black "Nagy, Ladislav"]
[Result "1-0"]
[TimeControl "2x 3 min + 2s/move"]
[WhiteElo "2389"]
[BlackElo "2189"]

1. c4 {[%clk 00:03:03]} e5 {[%clk 00:03:03]} {[%emt 00:00:05]} 2. Nc3 {[%clk
00:03:02]} {[%emt 00:00:08]} Nc6 {[%clk 00:03:04]} 3. Nf3 {[%clk 00:02:59]}
{[%emt 00:00:05]} g6 {[%clk 00:03:04]} 4. d4 {[%clk 00:02:59]} exd4 {[%clk
00:03:04]} 5. Nxd4 {[%clk 00:03:00]} {[%emt 00:00:04]} Bg7 {[%clk 00:03:05]} 6.
Nxc6 {[%clk 00:03:01]} {[%emt 00:00:10]} bxc6 {[%clk 00:03:02]} 7. g3 {[%clk
00:03:00]} Ne7 {[%clk 00:02:59]} {[%emt 00:00:19]} 8. Bg2 {[%clk 00:03:01]} O-O
{[%clk 00:02:55]} 9. O-O {[%clk 00:03:02]} Bb7 {[%clk 00:02:50]} 10. e4 {[%clk
00:02:41]} {[%emt 00:00:21]} Rb8 {[%clk 00:02:46]} {[%emt 00:00:09]} 11. Qc2
{[%clk 00:02:36]} {[%emt 00:00:10]} c5 {[%clk 00:02:45]} 12. b3 {[%clk
00:02:23]} {[%emt 00:00:11]} Nc6 {[%clk 00:02:42]} {[%emt 00:00:06]} 13. Bb2
{[%clk 00:02:19]} {[%emt 00:00:05]} Nd4 {[%clk 00:02:39]} {[%emt 00:00:05]} 14.
Qd2 {[%clk 00:02:16]} {[%emt 00:00:05]} Re8 {[%clk 00:02:36]} {[%emt 00:00:06]}
15. f4 {[%clk 00:01:45]} {[%emt 00:00:34]} d6 {[%clk 00:02:36]} {[%emt
00:00:04]} 16. Rad1 {[%clk 00:01:37]} {[%emt 00:00:14]} Bc6 {[%clk 00:02:32]}
17. Rfe1 {[%clk 00:01:33]} {[%emt 00:00:20]} Qc8 {[%clk 00:02:20]} 18. Re3
{[%clk 00:01:01]} {[%emt 00:00:36]} Qb7 {[%clk 00:01:58]} {[%emt 00:00:20]} 19.
Rde1 {[%clk 00:01:00]} {[%emt 00:00:05]} a5 {[%clk 00:01:58]} {[%emt 00:00:04]}
20. Ne2 {[%clk 00:00:52]} {[%emt 00:00:05]} a4 {[%clk 00:01:26]} {[%emt
00:00:34]} 21. Nxd4 {[%clk 00:00:49]} {[%emt 00:00:06]} cxd4 {[%clk 00:01:27]}
22. Bxd4 {[%clk 00:00:50]} {[%emt 00:00:06]} axb3 {[%clk 00:01:23]} {[%emt
00:00:04]} 23. Bxg7 {[%clk 00:00:47]} {[%emt 00:00:05]} Kxg7 {[%clk 00:01:23]}
{[%emt 00:00:10]} 24. Qd4+ {[%clk 00:00:46]} Kg8 {[%clk 00:01:23]} 25. axb3
{[%clk 00:00:47]} f5 {[%clk 00:01:01]} {[%emt 00:00:19]} 26. exf5 {[%clk
00:00:22]} {[%emt 00:00:36]} Rxe3 {[%clk 00:01:01]} 27. Rxe3 {[%clk 00:00:23]}
Bxg2 {[%clk 00:00:57]} 28. Re7 {[%clk 00:00:24]} c5 {[%clk 00:00:48]} {[%emt
00:00:13]} 29. Qg7# {[%emt 00:00:10]} 1-0

[Event "MČR 2022 blesk"]
[Site "Turnov, Czech Republic"]
[Date "2022.09.10"]
[Round "8.7"]
[White "Vybiral, Zdenek"]
[Black "Finek, Vaclav"]
[Result "0-1"]
[TimeControl "2x 3 min + 2s/move"]
[WhiteElo "2162"]
[BlackElo "2101"]

1. d4 {[%clk 00:03:02]} {[%emt 00:04:13]} Nf6 {[%clk 00:02:58]} {[%emt
00:00:46]} 2. Bg5 {[%clk 00:03:03]} c5 {[%clk 00:02:54]} {[%emt 00:00:09]} 3.
dxc5 {[%clk 00:03:00]} {[%emt 00:00:04]} Qa5+ {[%clk 00:02:45]} {[%emt
00:00:08]} 4. Nc3 {[%clk 00:03:01]} Qxc5 {[%clk 00:02:46]} {[%emt 00:00:06]} 5.
Nf3 {[%clk 00:02:59]} {[%emt 00:00:04]} d6 {[%clk 00:02:40]} {[%emt 00:00:04]}
6. e4 {[%clk 00:02:57]} {[%emt 00:00:06]} Bg4 {[%clk 00:02:34]} {[%emt
00:00:07]} 7. Qd2 {[%clk 00:02:49]} {[%emt 00:00:08]} Bxf3 {[%clk 00:02:24]}
{[%emt 00:00:13]} 8. gxf3 {[%clk 00:02:50]} Nbd7 {[%clk 00:02:23]} {[%emt
00:00:05]} 9. Bb5 {[%clk 00:02:15]} {[%emt 00:00:41]} a6 {[%clk 00:02:07]}
{[%emt 00:00:12]} 10. Bxd7+ {[%clk 00:02:12]} {[%emt 00:00:05]} Nxd7 {[%clk
00:02:07]} {[%emt 00:00:05]} 11. Nd5 {[%clk 00:02:13]} e6 {[%clk 00:01:58]}
{[%emt 00:00:11]} 12. Nc3 {[%clk 00:01:34]} {[%emt 00:00:45]} Ne5 {[%clk
00:01:55]} 13. Qe2 {[%clk 00:01:08]} {[%emt 00:00:27]} Nxf3+ {[%clk 00:01:53]}
{[%emt 00:00:04]} 14. Qxf3 {[%clk 00:01:09]} Qxg5 {[%clk 00:01:54]} {[%emt
00:00:05]} 15. h4 {[%clk 00:01:07]} {[%emt 00:00:15]} Qc5 {[%clk 00:01:43]} 16.
Rg1 {[%clk 00:01:00]} {[%emt 00:00:09]} Rc8 {[%clk 00:01:29]} {[%emt 00:00:15]}
17. O-O-O {[%clk 00:00:57]} {[%emt 00:00:10]} b5 {[%clk 00:01:29]} 18. Rg5
{[%clk 00:00:42]} {[%emt 00:00:15]} Qc4 {[%clk 00:01:12]} {[%emt 00:00:19]} 19.
a3 {[%clk 00:00:34]} {[%emt 00:00:10]} g6 {[%clk 00:00:56]} {[%emt 00:00:18]}
20. Qf6 {[%clk 00:00:17]} {[%emt 00:00:24]} Rg8 {[%clk 00:00:56]} 21. e5 {[%clk
00:00:10]} {[%emt 00:00:06]} Be7 {[%clk 00:00:52]} {[%emt 00:00:11]} 22. Qf3
{[%clk 00:00:10]} Bxg5+ {[%clk 00:00:43]} {[%emt 00:00:06]} 23. hxg5 {[%clk
00:00:11]} d5 {[%clk 00:00:44]} {[%emt 00:00:21]} 24. Kb1 {[%clk 00:00:10]} a5
{[%clk 00:00:35]} 25. Qe3 {[%emt 00:00:08]} b4 {[%clk 00:00:34]} 26. axb4
{[%clk 00:00:09]} {[%emt 00:00:09]} axb4 {[%clk 00:00:34]} 27. Rd4 {[%clk
00:00:10]} Qc5 {[%clk 00:00:28]} 28. Na4 {[%clk 00:00:08]} {[%emt 00:00:08]}
Qxc2+ {[%clk 00:00:28]} {[%emt 00:00:31]} 29. Ka2 {[%clk 00:00:09]} Qxa4+
{[%clk 00:00:28]} 30. Kb1 {[%clk 00:00:10]} Qc2+ {[%clk 00:00:29]} 31. Ka1
{[%clk 00:00:11]} Ra8+ {[%clk 00:03:02]} 0-1

[Event "MČR 2022 blesk"]
[Site "Turnov, Czech Republic"]
[Date "2022.09.10"]
[Round "8.8"]
[White "Simacek, Pavel"]
[Black "Richtrova, Eliska"]
[Result "1-0"]
[TimeControl "2x 3 min + 2s/move"]
[WhiteElo "2365"]
[BlackElo "2129"]

1. e4 {[%clk 00:03:01]} {[%emt 00:00:06]} c6 {[%clk 00:03:03]} {[%emt
00:00:09]} 2. d4 {[%clk 00:03:00]} d5 {[%clk 00:03:04]} 3. Nc3 {[%clk
00:02:58]} g6 {[%clk 00:03:03]} {[%emt 00:00:05]} 4. Nf3 {[%clk 00:02:49]}
{[%emt 00:00:24]} Bg7 {[%clk 00:03:04]} 5. h3 {[%clk 00:02:50]} Nh6 {[%clk
00:03:01]} {[%emt 00:00:12]} 6. Bf4 {[%clk 00:02:39]} {[%emt 00:00:05]} f6
{[%clk 00:03:02]} 7. exd5 {[%clk 00:02:39]} {[%emt 00:00:05]} cxd5 {[%clk
00:03:03]} 8. Nb5 {[%clk 00:02:40]} Na6 {[%clk 00:03:03]} 9. c4 {[%clk
00:02:40]} {[%emt 00:00:05]} Nf7 {[%clk 00:02:52]} {[%emt 00:00:09]} 10. Nc3
{[%clk 00:02:40]} {[%emt 00:00:06]} dxc4 {[%clk 00:02:33]} {[%emt 00:00:18]} 11.
Bxc4 {[%clk 00:02:38]} {[%emt 00:00:07]} O-O {[%clk 00:02:21]} {[%emt
00:00:11]} 12. O-O {[%clk 00:02:37]} {[%emt 00:00:07]} Nc7 {[%clk 00:02:10]}
{[%emt 00:00:13]} 13. Re1 {[%clk 00:02:32]} {[%emt 00:00:05]} a6 {[%clk
00:02:04]} {[%emt 00:00:05]} 14. Bb3 {[%clk 00:02:27]} {[%emt 00:00:10]} b5
{[%clk 00:01:44]} {[%emt 00:00:28]} 15. Bxc7 {[%clk 00:02:25]} Qxc7 {[%clk
00:01:45]} 16. Nd5 {[%clk 00:02:26]} Qd8 {[%clk 00:01:31]} {[%emt 00:00:15]} 17.
Rxe7 {[%clk 00:02:24]} {[%emt 00:00:05]} Kh8 {[%clk 00:01:23]} {[%emt
00:00:16]} 18. Qe2 {[%clk 00:02:13]} {[%emt 00:00:05]} Nd6 {[%clk 00:01:24]} 19.
Rc1 {[%clk 00:02:01]} {[%emt 00:00:14]} Bf5 {[%clk 00:01:22]} {[%emt 00:00:07]}
20. Rcc7 {[%clk 00:01:49]} {[%emt 00:00:12]} Ne8 {[%clk 00:01:12]} {[%emt
00:00:12]} 21. Rc5 {[%clk 00:01:31]} {[%emt 00:00:19]} Rb8 {[%clk 00:01:05]}
{[%emt 00:00:10]} 22. Nh4 {[%clk 00:01:29]} {[%emt 00:00:07]} Bd7 {[%clk
00:01:00]} {[%emt 00:00:04]} 23. Qe4 {[%clk 00:01:24]} {[%emt 00:00:10]} f5
{[%clk 00:00:57]} {[%emt 00:00:17]} 24. Nxg6+ {[%clk 00:01:22]} 1-0